fUST/lending_fUST_20250830
["ID","MTS","AMOUNT","RATE_DAILY","PERIOD"]
[382057805,1756491042282,-151.0,0.00027913,7]
[382057806,1756491042291,-151.0,0.00027913,7]
[382057807,1756491042301,-41191.9331614,0.00027913,2]
[382057808,1756491042310,-381.52642049,0.00027913,2]
[382057809,1756491042320,-151.0,0.00027923,7]
[382057810,1756491042334,-151.0,0.00027923,7]
[382057811,1756491042343,-225.149642,0.00027923,7]
[382057812,1756491042353,-225.149642,0.00027923,7]
[382057813,1756491042363,-151.0,0.00027923,7]
[382057814,1756491042374,-225.149642,0.00027923,7]
[382057815,1756491042384,-306.016088,0.00027923,7]
[382057817,1756491042394,-225.149642,0.00027923,7]
[382057819,1756491042404,-306.016088,0.00027923,7]
[382057821,1756491042413,-151.0,0.00027923,7]
[382057823,1756491042422,-306.016088,0.00027923,7]
[382057825,1756491042431,-151.0,0.00027923,7]
[382057827,1756491042441,-306.016088,0.00027923,7]
[382057829,1756491042451,-1110.742623,0.00027923,7]
[382057830,1756491042461,-1110.742623,0.00027923,7]
[382057832,1756491042472,-184.303327,0.00027923,7]
[382057834,1756491042482,-1110.742623,0.00027923,7]
[382057836,1756491042495,-151.0,0.00027923,7]
[382057838,1756491042505,-1110.742623,0.00027923,7]
[382057839,1756491042514,-367.151548,0.00027923,7]
[382057840,1756491042524,-7041.93782103,0.00027924,2]
[382057841,1756491042534,-500.0,0.00027973,5]
[382057843,1756491042543,-500.0,0.00027973,5]
[382057844,1756491042553,-151.0,0.00027973,7]
[382057846,1756491042562,-151.0,0.00027973,7]
[382057848,1756491042571,-151.0,0.00027973,7]
[382057850,1756491042580,-151.0,0.00027973,7]
[382057852,1756491042590,-310.921098,0.00027973,7]
[382057854,1756491042599,-151.0,0.00027973,7]
[382057856,1756491042609,-310.921098,0.00027973,7]
[382057858,1756491042618,-157.034756,0.00027973,7]
[382057860,1756491042627,-310.921098,0.00027973,7]
[382057862,1756491042636,-157.034756,0.00027973,7]
[382057864,1756491042646,-310.921098,0.00027973,7]
[382057866,1756491042656,-157.034756,0.00027973,7]
[382057868,1756491042666,-157.034756,0.00027973,7]
[382057870,1756491042676,-151.0,0.00027973,7]
[382057872,1756491042686,-151.0,0.00027973,7]
[382057874,1756491042695,-151.0,0.00027973,7]
[382057876,1756491042704,-151.0,0.00027973,7]
[382057878,1756491042714,-151.0,0.00027973,7]
[382057880,1756491042723,-151.0,0.00027973,7]
[382057882,1756491042733,-151.0,0.00027973,7]
[382057884,1756491042743,-151.0,0.00027973,7]
[382057886,1756491042752,-151.0,0.00027973,7]
[382057888,1756491042762,-151.0,0.00027973,7]
[382057890,1756491042771,-151.0,0.0002799,7]
[382057892,1756491042782,-151.0,0.0002799,7]
[382057894,1756491042792,-151.0,0.0002799,7]
[382057896,1756491042801,-168.824,0.0002799,7]
[382057898,1756491042811,-310.921098,0.0002799,7]
[382057900,1756491042823,-310.921098,0.0002799,7]
[382057902,1756491042833,-151.0,0.0002799,7]
[382057904,1756491042842,-157.034756,0.0002799,7]
[382057906,1756491042852,-310.921098,0.0002799,7]
[382057908,1756491042862,-157.034756,0.0002799,7]
[382057910,1756491042871,-310.921098,0.0002799,7]
[382057912,1756491042881,-157.034756,0.0002799,7]
[382057914,1756491042891,-157.034756,0.0002799,7]
[382057916,1756491042901,-151.0,0.0002799,7]
[382057918,1756491042911,-151.0,0.0002799,7]
[382057920,1756491042921,-151.0,0.0002799,7]
[382057922,1756491042930,-178.801955,0.0002799,7]
[382057924,1756491042939,-151.0,0.0002799,7]
[382057926,1756491042948,-151.0,0.0002799,7]
[382057928,1756491042958,-151.0,0.0002799,7]
[382057930,1756491042967,-151.0,0.0002799,7]
[382057932,1756491042976,-151.0,0.0002799,7]
[382057934,1756491042986,-160.0,0.00028,2]
[382057936,1756491042997,-1500.0,0.00028068,5]
[382057938,1756491043006,-257.57865775,0.00028068,5]
[382057940,1756491043015,-1500.0,0.00028068,5]
[382057942,1756491043026,-1500.0,0.00028068,5]
[382057944,1756491043036,-1500.0,0.00028068,5]
[382057946,1756491043046,-1500.0,0.00028068,5]
[382057948,1756491043055,-500.0,0.00028148,2]
[382057950,1756491043065,-41191.9331614,0.00028158,2]
[382057953,1756491043075,-381.52642049,0.00028158,2]
[382057955,1756491043085,-151.0,0.00028168,7]
[382057957,1756491043095,-225.149642,0.00028168,7]
[382057959,1756491043104,-225.149642,0.00028168,7]
[382057960,1756491043114,-151.0,0.00028168,7]
[382057963,1756491043124,-225.149642,0.00028168,7]
[382057964,1756491043134,-306.016088,0.00028168,7]
[382057966,1756491043144,-306.016088,0.00028168,7]
[382057968,1756491043153,-225.149642,0.00028168,7]
[382057970,1756491043163,-292.687492,0.00028168,7]
[382057972,1756491043172,-306.016088,0.00028168,7]
[382057974,1756491043182,-151.0,0.00028168,7]
[382057976,1756491043194,-306.016088,0.00028168,7]
[382057978,1756491043204,-1110.742623,0.00028168,7]
[382057981,1756491043213,-1110.742623,0.00028168,7]
[382057983,1756491043222,-1110.742623,0.00028168,7]
[382057986,1756491043232,-1110.742623,0.00028168,7]
[382057989,1756491043241,-1500.0,0.00028168,5]
[382057992,1756491043251,-1500.0,0.00028168,5]
[382057994,1756491043260,-1500.0,0.00028168,5]
[382057996,1756491043270,-552.47472649,0.00028168,5]
[382057998,1756491043281,-150.0,0.00028173,5]
[382058000,1756491043291,-355.0,0.00028173,2]
[382058003,1756491043300,-154.84,0.00028215,15]
[382058005,1756491043309,-1000.0,0.00028221,5]
[382058007,1756491043320,-1000.0,0.00028221,5]
[382058010,1756491043333,-1000.0,0.00028221,5]
[382058012,1756491043344,-1000.0,0.00028221,5]
[382058014,1756491043354,-1000.0,0.00028221,5]
[382058016,1756491043363,-1000.0,0.00028221,5]
[382058018,1756491043374,-1005.92988686,0.00028221,5]
[382058020,1756491043383,-1000.0,0.00028221,5]
[382058022,1756491043394,-1000.0,0.00028221,5]
[382058024,1756491043404,-1000.0,0.00028221,5]
[382058026,1756491043414,-1000.0,0.00028221,2]
[382058028,1756491043427,-1000.0,0.00028221,5]
[382058030,1756491043436,-502.97496908,0.00028221,5]
[382058032,1756491043445,-502.07979579,0.00028221,5]
[382058034,1756491043455,-1000.0,0.00028221,5]
[382058036,1756491043465,-1000.0,0.00028221,5]
[382058037,1756491043474,-1000.0,0.00028221,5]
[382058038,1756491043484,-564.2566181,0.00028221,5]
[382058040,1756491043493,-1000.0,0.00028221,5]
[382058042,1756491043502,-1000.0,0.00028221,5]
[382058044,1756491043512,-399.39504596,0.00028221,5]
[382058046,1756491043522,-1000.0,0.00028221,5]
[382058048,1756491043532,-1000.0,0.00028221,5]
[382058050,1756491043542,-1000.0,0.00028221,5]
[382058052,1756491043551,-500.14150593,0.00028221,5]
[382058054,1756491043560,-1000.0,0.00028221,5]
[382058056,1756491043570,-1005.91835226,0.00028221,5]
[382058058,1756491043579,-1000.0,0.00028221,5]
[382058060,1756491043588,-1000.0,0.00028221,5]
[382058062,1756491043598,-1000.30488028,0.00028221,5]
[382058064,1756491043608,-424.86532121,0.00028221,5]
[382058066,1756491043617,-1000.0,0.00028221,5]
[382058068,1756491043626,-1000.0,0.00028221,5]
[382058070,1756491043635,-1000.0,0.00028221,5]
[382058072,1756491043645,-500.0,0.00028221,5]
[382058074,1756491043655,-659.42232169,0.00028221,5]
[382058076,1756491043666,-1000.0,0.00028221,5]
[382058078,1756491043675,-154.84,0.00028315,15]
[382058080,1756491043684,-154.84,0.00028415,15]
[382058082,1756491043693,-218.801,0.00028415,19]
[382058084,1756491043702,-500.0,0.00028422,2]
[382058086,1756491043713,-434.0,0.00028457,2]
[382058088,1756491043723,-500.0,0.00028473,5]
[382058089,1756491043733,-500.0,0.00028473,5]
[382058090,1756491043743,-500.0,0.00028473,5]
[382058092,1756491043752,-151.0,0.00028473,7]
[382058094,1756491043761,-151.0,0.00028473,7]
[382058096,1756491043771,-151.0,0.00028473,7]
[382058110,1756491043892,-310.921098,0.00028473,7]
[382058112,1756491043909,-310.921098,0.00028473,7]
[382058114,1756491043920,-151.0,0.00028473,7]
[382058117,1756491043930,-157.034756,0.00028473,7]
[382058120,1756491043940,-310.921098,0.00028473,7]
[382058122,1756491043949,-157.034756,0.00028473,7]
[382058123,1756491043961,-310.921098,0.00028473,7]
[382058125,1756491043971,-157.034756,0.00028473,7]
[382058127,1756491043980,-157.034756,0.00028473,7]
[382058129,1756491043989,-151.0,0.00028473,7]
[382058132,1756491043999,-151.0,0.00028473,7]
[382058133,1756491044010,-151.0,0.00028473,7]
[382058135,1756491044019,-151.0,0.00028473,7]
[382058137,1756491044031,-151.0,0.00028473,7]
[382058139,1756491044041,-151.0,0.00028473,7]
[382058141,1756491044051,-151.0,0.00028473,7]
[382058143,1756491044060,-159.540892,0.00028473,7]
[382058145,1756491044069,-300.0,0.00028481,20]
[382058147,1756491044078,-300.0,0.00028481,20]
[382058149,1756491044087,-300.0,0.00028481,20]
[382058151,1756491044096,-300.0,0.00028481,20]
[382058153,1756491044106,-300.0,0.00028481,20]
[382058155,1756491044116,-300.0,0.00028481,20]
[382058157,1756491044127,-300.0,0.00028481,20]
[382058159,1756491044136,-300.0,0.00028481,20]
[382058161,1756491044145,-300.0,0.00028481,20]
[382058163,1756491044154,-300.0,0.00028481,20]
[382058165,1756491044164,-300.0,0.00028481,20]
[382058167,1756491044174,-300.0,0.00028481,20]
[382058169,1756491044185,-300.0,0.00028481,20]
[382058171,1756491044194,-300.0,0.00028481,20]
[382058173,1756491044204,-300.0,0.00028481,20]
[382058175,1756491044213,-500.0,0.00028481,20]
[382058177,1756491044223,-151.0,0.00028481,20]
[382058179,1756491044233,-155.51914703,0.00028481,20]
[382058181,1756491044242,-151.0,0.00028481,14]
[382058183,1756491044252,-151.0,0.00028481,20]
[382058185,1756491044261,-154.84,0.00028515,15]
[382058187,1756491044270,-188.65173561,0.00028521,5]
[382058189,1756491044283,-1000.0,0.00028521,5]
[382058191,1756491044292,-260.0,0.00028548,2]
[382058193,1756491044301,-154.84,0.00028615,15]
[382058195,1756491044311,-2000.0,0.00028616,5]
[382058197,1756491044322,-500.0,0.00028616,5]
[382058199,1756491044335,-2000.0,0.00028616,5]
[382058201,1756491044345,-1502.83845701,0.00028616,5]
[382058203,1756491044355,-1000.0,0.00028616,5]
[382058205,1756491044364,-507.8708596,0.00028696,2]
[382058207,1756491044374,-560.0,0.00028707,2]
[382058209,1756491044384,-154.84,0.00028715,15]
[382058211,1756491044393,-2036.3278538,0.00028716,5]
[382058213,1756491044403,-2000.0,0.00028716,5]
[382058215,1756491044413,-2000.0,0.00028716,5]
[382058217,1756491044422,-250.0,0.00028721,5]
[382058219,1756491044431,-500.0,0.00028755,20]
[382058221,1756491044440,-151.20429907,0.00028755,20]
[382058223,1756491044450,-151.0,0.00028755,20]
[382058226,1756491044460,-162.361126,0.00028768,7]
[382058229,1756491044469,-225.149642,0.00028768,7]
[382058231,1756491044479,-225.149642,0.00028768,7]
[382058234,1756491044487,-153.710893,0.00028768,7]
[382058236,1756491044497,-225.149642,0.00028768,7]
[382058237,1756491044506,-306.016088,0.00028768,7]
[382058239,1756491044516,-306.016088,0.00028768,7]
[382058241,1756491044526,-225.149637,0.00028768,7]
[382058244,1756491044536,-306.016088,0.00028768,7]
[382058245,1756491044546,-151.0,0.00028768,7]
[382058247,1756491044555,-306.016082,0.00028768,7]
[382058249,1756491044566,-1110.742623,0.00028768,7]
[382058251,1756491044575,-1110.742623,0.00028768,7]
[382058253,1756491044585,-1110.742623,0.00028768,7]
[382058255,1756491044595,-1110.742617,0.00028768,7]
[382058257,1756491044606,-1500.0,0.00028768,5]
[382058259,1756491044615,-1003.75014507,0.00028768,5]
[382058261,1756491044625,-1500.0,0.00028768,5]
[382058264,1756491044635,-1507.14658998,0.00028768,5]
[382058266,1756491044646,-862.42930821,0.00028768,5]
[382058268,1756491044655,-1500.0,0.00028768,5]
[382058270,1756491044664,-242.94924716,0.00028768,5]
[382058271,1756491044673,-1500.0,0.00028768,5]
[382058273,1756491044683,-1500.0,0.00028768,5]
[382058275,1756491044693,-1500.0,0.00028768,5]
[382058277,1756491044703,-1400.02168337,0.00028768,5]
[382058279,1756491044713,-500.0,0.00028768,5]
[382058281,1756491044722,-1500.0,0.00028768,5]
[382058283,1756491044733,-500.0,0.00028768,5]
[382058285,1756491044743,-1500.0,0.00028768,5]
[382058287,1756491044752,-1500.0,0.00028768,5]
[382058289,1756491044761,-1503.53147026,0.00028768,5]
[382058291,1756491044771,-500.0,0.00028768,5]
[382058293,1756491044781,-1001.41096466,0.00028768,5]
[382058295,1756491044791,-1500.0,0.00028768,5]
[382058297,1756491044801,-1010.26063339,0.00028768,5]
[382058299,1756491044810,-1500.0,0.00028768,5]
[382058301,1756491044820,-1000.0,0.00028768,5]
[382058303,1756491044830,-1001.38259314,0.00028768,5]
[382058305,1756491044840,-500.0,0.00028768,5]
[382058307,1756491044850,-154.84,0.00028815,15]
[382058309,1756491044860,-154.84,0.00028915,15]
[382058311,1756491044869,-151.0,0.0002898,7]
[382058313,1756491044879,-277.52443,0.0002898,7]
[382058315,1756491044889,-151.0,0.0002898,7]
[382058317,1756491044898,-310.921098,0.0002898,7]
[382058319,1756491044908,-310.921098,0.0002898,7]
[382058321,1756491044917,-151.0,0.0002898,7]
[382058323,1756491044927,-157.034756,0.0002898,7]
[382058325,1756491044936,-310.921098,0.0002898,7]
[382058327,1756491044946,-157.034756,0.0002898,7]
[382058329,1756491044955,-310.92109,0.0002898,7]
[382058331,1756491044964,-157.034756,0.0002898,7]
[382058333,1756491044973,-157.034766,0.0002898,7]
[382058335,1756491044982,-151.0,0.0002898,7]
[382058337,1756491044991,-151.0,0.0002898,7]
[382058339,1756491045002,-151.0,0.0002898,7]
[382058341,1756491045011,-151.0,0.0002898,7]
[382058343,1756491045021,-151.0,0.0002898,7]
[382058345,1756491045033,-151.0,0.0002898,7]
[382058347,1756491045042,-153.459432,0.0002898,7]
[382058349,1756491045053,-123575.799484,0.0002898,2]
[382058351,1756491045062,-1144.57926147,0.0002898,2]
[382058353,1756491045071,-151.0,0.0002899,7]
[382058355,1756491045081,-224.270744,0.0002899,7]
[382058357,1756491045090,-151.0,0.0002899,7]
[382058359,1756491045099,-151.0,0.0002899,7]
[382058361,1756491045108,-288.443442,0.0002899,7]
[382058363,1756491045117,-288.443442,0.0002899,7]
[382058365,1756491045126,-288.443442,0.0002899,7]
[382058367,1756491045135,-288.443442,0.0002899,7]
[382058369,1756491045144,-151.0,0.0002899,7]
[382058371,1756491045154,-151.0,0.0002899,7]
[382058373,1756491045163,-151.0,0.0002899,7]
[382058375,1756491045173,-206.750668,0.0002899,7]
[382058377,1756491045183,-754.224366,0.0002899,7]
[382058379,1756491045192,-754.224366,0.0002899,7]
[382058381,1756491045202,-754.224366,0.0002899,7]
[382058383,1756491045212,-754.224366,0.0002899,7]
[382058385,1756491045221,-41191.9331614,0.00029009,2]
[382058386,1756491045231,-381.52642049,0.00029009,2]
[382058388,1756491045240,-161.706,0.00029013,2]
[382058390,1756491045250,-154.84,0.00029015,15]
[382058392,1756491045260,-151.0,0.00029015,15]
[382058394,1756491045270,-151.0,0.00029015,15]
[382058396,1756491045279,-198.65074793,0.00029015,15]
[382058398,1756491045289,-151.58812772,0.00029015,15]
[382058400,1756491045299,-151.0,0.00029015,15]
[382058402,1756491045309,-151.0,0.00029015,15]
[382058404,1756491045320,-151.0,0.00029015,15]
[382058406,1756491045333,-151.0,0.00029015,15]
[382058408,1756491045342,-279.61556348,0.00029015,15]
[382058410,1756491045351,-151.0,0.00029015,15]
[382058412,1756491045361,-151.0,0.00029015,15]
[382058414,1756491045371,-151.0,0.00029015,15]
[382058416,1756491045381,-151.0,0.00029015,15]
[382058418,1756491045390,-151.0,0.00029015,15]
[382058420,1756491045402,-151.0,0.00029015,15]
[382058422,1756491045411,-151.0,0.00029015,15]
[382058424,1756491045422,-151.0,0.00029015,15]
[382058426,1756491045432,-500.0,0.00029015,15]
[382058428,1756491045441,-151.0,0.00029015,15]
[382058430,1756491045450,-151.30874469,0.00029015,15]
[382058432,1756491045459,-151.0,0.00029015,15]
[382058433,1756491045470,-151.0,0.00029015,15]
[382058435,1756491045479,-500.0,0.00029015,15]
[382058437,1756491045489,-151.38281223,0.00029015,15]
[382058439,1756491045498,-151.0,0.00029015,15]
[382058441,1756491045508,-151.0,0.00029015,15]
[382058443,1756491045518,-151.0,0.00029015,2]
[382058445,1756491045529,-151.93286809,0.00029015,15]
[382058447,1756491045540,-151.0,0.00029015,2]
[382058449,1756491045549,-300.17546405,0.00029015,2]
[382058451,1756491045559,-151.0,0.00029015,2]
[382058453,1756491045569,-151.0,0.00029015,15]
[382058455,1756491045578,-151.0,0.00029015,15]
[382058457,1756491045588,-312.458848,0.00029019,7]
[382058459,1756491045597,-312.458848,0.00029019,7]
[382058461,1756491045607,-312.458848,0.00029019,7]
[382058463,1756491045616,-161.148955,0.00029019,7]
[382058465,1756491045625,-312.458848,0.00029019,7]
[382058467,1756491045635,-161.148955,0.00029019,7]
[382058469,1756491045645,-161.148955,0.00029019,7]
[382058471,1756491045654,-161.148955,0.00029019,7]
[382058473,1756491045663,-151.0,0.00029019,7]
[382058475,1756491045672,-151.580675,0.00029019,7]
[382058476,1756491045682,-151.0,0.00029019,7]
[382058479,1756491045692,-151.0,0.00029019,7]
[382058481,1756491045702,-151.0,0.00029019,7]
[382058482,1756491045711,-151.0,0.00029019,7]
[382058484,1756491045720,-288.443442,0.00029019,7]
[382058486,1756491045730,-288.443442,0.00029019,7]
[382058488,1756491045739,-288.443442,0.00029019,7]
[382058490,1756491045749,-288.443442,0.00029019,7]
[382058492,1756491045758,-184.015864,0.00029019,7]
[382058494,1756491045768,-151.0,0.00029019,7]
[382058496,1756491045779,-151.0,0.00029019,7]
[382058498,1756491045788,-754.224366,0.00029019,7]
[382058500,1756491045797,-754.224366,0.00029019,7]
[382058502,1756491045807,-754.224366,0.00029019,7]
[382058504,1756491045816,-754.224366,0.00029019,7]
[382058506,1756491045825,-217.30324474,0.00029019,7]
[382058508,1756491045835,-425.57542551,0.00029019,7]
[382058510,1756491045844,-534.10727076,0.00029021,5]
[382058512,1756491045853,-500.0,0.00029021,5]
[382058514,1756491045863,-500.0,0.00029029,20]
[382058516,1756491045873,-151.0,0.00029029,20]
[382058518,1756491045883,-600.0,0.0002905,20]
[382058520,1756491045892,-461.7545245,0.00029068,5]
[382058522,1756491045902,-381.52642049,0.0002909,2]
[382058524,1756491045911,-360.0,0.00029096,2]
[382058526,1756491045921,-500.0,0.000291,5]
[382058528,1756491045931,-500.0,0.000291,5]
[382058530,1756491045940,-500.0,0.000291,5]
[382058532,1756491045948,-500.0,0.000291,5]
[382058534,1756491045957,-162.22808806,0.000291,5]
[382058536,1756491045966,-500.0,0.000291,5]
[382058538,1756491045977,-8793.90080309,0.00029102,2]
[382058540,1756491045987,-154.84,0.00029115,15]
[382058542,1756491045996,-1500.0,0.00029164,5]
[382058544,1756491046006,-2500.0,0.00029164,5]
[382058546,1756491046016,-420.0,0.00029178,2]
[382058548,1756491046025,-300.0,0.00029178,2]
[382058550,1756491046036,-701.71,0.00029192,3]
[382058552,1756491046045,-935.6,0.00029193,3]
[382058554,1756491046054,-467.8,0.00029193,3]
[382058557,1756491046063,-233.9,0.00029193,3]
[382058560,1756491046072,-1680.0,0.00029193,2]
[382058562,1756491046081,-3742.38,0.00029195,3]
[382058564,1756491046090,-1871.19,0.00029195,3]
[382058566,1756491046100,-151.0,0.00029203,7]
[382058568,1756491046109,-151.0,0.00029203,7]
[382058570,1756491046118,-151.0,0.00029203,7]
[382058572,1756491046127,-151.0,0.00029203,7]
[382058573,1756491046137,-152.454756,0.00029203,7]
[382058575,1756491046146,-151.0,0.00029203,7]
[382058577,1756491046156,-151.0,0.00029203,7]
[382058579,1756491046166,-151.0,0.00029203,7]
[382058581,1756491046176,-151.0,0.00029203,7]
[382058583,1756491046186,-151.0,0.00029203,7]
[382058585,1756491046196,-151.0,0.00029203,7]
[382058588,1756491046206,-151.0,0.00029203,7]
[382058589,1756491046215,-151.0,0.00029203,7]
[382058591,1756491046225,-151.0,0.00029203,7]
[382058593,1756491046235,-151.0,0.00029203,7]
[382058597,1756491046354,-151.0,0.00029203,7]
[382058598,1756491046366,-151.0,0.00029203,7]
[382058599,1756491046376,-151.0,0.00029203,7]
[382058600,1756491046385,-151.0,0.00029203,7]
[382058602,1756491046394,-151.0,0.00029203,7]
[382058604,1756491046405,-271.376281,0.00029203,7]
[382058606,1756491046414,-271.376281,0.00029203,7]
[382058608,1756491046424,-271.376281,0.00029203,7]
[382058610,1756491046433,-271.376281,0.00029203,7]
[382058612,1756491046442,-151.0,0.00029203,7]
[382058614,1756491046452,-151.0,0.00029203,7]
[382058616,1756491046462,-221.893712,0.00029203,7]
[382058618,1756491046471,-221.893712,0.00029203,7]
[382058620,1756491046480,-221.893712,0.00029203,7]
[382058622,1756491046489,-312.458848,0.00029203,7]
[382058624,1756491046499,-221.893712,0.00029203,7]
[382058625,1756491046508,-312.458848,0.00029203,7]
[382058627,1756491046518,-312.458848,0.00029203,7]
[382058629,1756491046527,-161.148955,0.00029203,7]
[382058631,1756491046538,-312.458848,0.00029203,7]
[382058633,1756491046547,-161.148955,0.00029203,7]
[382058635,1756491046556,-161.148955,0.00029203,7]
[382058637,1756491046566,-151.0,0.00029203,7]
[382058639,1756491046575,-161.148955,0.00029203,7]
[382058641,1756491046584,-151.0,0.00029203,7]
[382058643,1756491046593,-151.0,0.00029203,7]
[382058644,1756491046603,-151.0,0.00029203,7]
[382058646,1756491046612,-151.0,0.00029203,7]
[382058648,1756491046622,-151.0,0.00029203,7]
[382058650,1756491046631,-151.0,0.00029203,7]
[382058652,1756491046640,-160.0,0.00029203,7]
[382058654,1756491046650,-288.443442,0.00029203,7]
[382058656,1756491046659,-288.443442,0.00029203,7]
[382058658,1756491046668,-288.443442,0.00029203,7]
[382058660,1756491046677,-288.443442,0.00029203,7]
[382058662,1756491046687,-151.0,0.00029203,7]
[382058664,1756491046700,-151.0,0.00029203,7]
[382058666,1756491046709,-754.224366,0.00029203,7]
[382058668,1756491046718,-754.224366,0.00029203,7]
[382058670,1756491046727,-754.224366,0.00029203,7]
[382058672,1756491046738,-754.224366,0.00029203,7]
[382058674,1756491046747,-151.0,0.00029213,7]
[382058676,1756491046757,-151.0,0.00029213,7]
[382058678,1756491046766,-151.0,0.00029213,7]
[382058680,1756491046775,-151.0,0.00029213,7]
[382058682,1756491046784,-152.662223,0.00029213,7]
[382058684,1756491046794,-221.477214,0.00029213,7]
[382058686,1756491046804,-151.407688,0.00029213,7]
[382058688,1756491046813,-221.477214,0.00029213,7]
[382058690,1756491046823,-221.477214,0.00029213,7]
[382058692,1756491046832,-221.477214,0.00029213,7]
[382058694,1756491046841,-154.84,0.00029215,15]
[382058696,1756491046850,-381.52642049,0.00029254,2]
[382058698,1756491046860,-151.0,0.00029264,7]
[382058700,1756491046869,-288.443442,0.00029264,7]
[382058702,1756491046878,-288.443442,0.00029264,7]
[382058704,1756491046887,-288.443442,0.00029264,7]
[382058706,1756491046896,-288.443442,0.00029264,7]
[382058708,1756491046906,-151.0,0.00029264,7]
[382058710,1756491046915,-151.0,0.00029264,7]
[382058712,1756491046925,-754.224366,0.00029264,7]
[382058714,1756491046934,-754.224366,0.00029264,7]
[382058716,1756491046943,-754.224366,0.00029264,7]
[382058718,1756491046952,-754.224366,0.00029264,7]
[382058720,1756491046962,-2500.0,0.00029264,5]
[382058722,1756491046971,-2500.0,0.00029264,5]
[382058724,1756491046981,-350.0,0.00029268,5]
[382058726,1756491046991,-500.0,0.00029273,5]
[382058728,1756491047001,-500.0,0.00029273,5]
[382058730,1756491047010,-500.0,0.00029273,5]
[382058732,1756491047019,-500.0,0.00029273,5]
[382058734,1756491047028,-500.0,0.00029273,5]
[382058736,1756491047038,-500.0,0.00029273,2]
[382058738,1756491047047,-500.0,0.00029273,5]
[382058740,1756491047056,-500.0,0.00029273,5]
[382058742,1756491047066,-151.0,0.00029273,7]
[382058744,1756491047075,-151.0,0.00029273,7]
[382058746,1756491047084,-151.0,0.00029273,7]
[382058748,1756491047094,-151.0,0.00029273,7]
[382058750,1756491047103,-152.078291,0.00029273,7]
[382058752,1756491047112,-151.0,0.00029273,7]
[382058754,1756491047121,-151.0,0.00029273,7]
[382058756,1756491047130,-151.0,0.00029273,7]
[382058758,1756491047140,-151.0,0.00029273,7]
[382058760,1756491047149,-151.0,0.00029273,7]
[382058762,1756491047159,-151.0,0.00029273,7]
[382058764,1756491047169,-151.0,0.00029273,7]
[382058766,1756491047178,-151.0,0.00029273,7]
[382058768,1756491047187,-151.0,0.00029273,7]
[382058769,1756491047197,-151.0,0.00029273,7]
[382058772,1756491047208,-177.065374,0.00029273,7]
[382058774,1756491047230,-214.917096,0.00029273,7]
[382058776,1756491047240,-271.376281,0.00029273,7]
[382058778,1756491047251,-271.376281,0.00029273,7]
[382058780,1756491047260,-271.376281,0.00029273,7]
[382058782,1756491047269,-271.376281,0.00029273,7]
[382058784,1756491047279,-151.0,0.00029273,7]
[382058785,1756491047289,-151.0,0.00029273,7]
[382058787,1756491047298,-221.893712,0.00029273,7]
[382058789,1756491047308,-221.893712,0.00029273,7]
[382058791,1756491047318,-221.893712,0.00029273,7]
[382058793,1756491047330,-312.458848,0.00029273,7]
[382058795,1756491047339,-221.893712,0.00029273,7]
[382058797,1756491047348,-312.458848,0.00029273,7]
[382058799,1756491047357,-312.458848,0.00029273,7]